{"text_format":"1","workbook":"xlsx","n_sheets":5,"sheets":["Прайс-лист","Тарифные планы","Примеры Баннеров","Примеры Рассылок","Контакты"],"not_rendered":{"charts":0,"images":7,"macros":1,"external_links":0,"defined_names":0,"comments":0,"pivot_tables":0},"unopened":[],"bounds":{"document_bytes":16777216,"sheet_cells":100000,"rows_first":2000,"rows_last":500,"rows_between":2000,"halvings":0,"cell_chars":16384,"cell_head_chars":4096},"cells_cut":0,"cells_raw":0,"read":"whole","date_system":"1900"}

{"sheet":"Прайс-лист","index":0,"n_rows":70,"n_cols":11,"rows_kept":70,"cut":false,"hidden":false,"merged":[[45,1,45,8],[23,1,23,8],[9,1,9,8],[6,1,6,8],[29,1,29,8],[34,1,34,8],[37,1,37,8],[63,1,63,8],[69,1,69,8],[68,1,68,8],[57,1,57,8],[49,1,49,8]]}
[null,null,null,null,null,"УТВЕРЖДАЮ",null,null,null,null,"Стоимость за 1000"]
[null,null,null,null,null,"Директор общества ",null,null,null,null,1.5]
[null,null,null,null,null,"с ограниченной ответственностью «Квитки Бел»",null,null,null,null,"Просмотров в день"]
[null,null,null,null,null,"__________________ А. Касинский",null,null,null,null,44500]
[null,null,null,null,null,"2019-11-20",null,null,null,null,"Подписчиков email"]
[null,null,null,null,null,null,null,null,null,null,300000]
[null,"Прейскурант №22 для организаторов мероприятий"]
[]
[null,"№","Название","Единиц","Формат, размер, px","Охват, пользователей","Цена без НДС, руб.","НДС,по ставке 20%","Итого с НДС, руб.","коэф."]
[null,"Сайт KVITKI BY"]
[null,1,"Закрепление в блоке \"Рекомендуем\" ГЛАВНАЯ","1 день","Закрепление мероприятия на Главной странице",{"$f":"K4*0.15","v":6675},30,{"$f":"Таблица3[[#This Row],[Столбец7]]*20%","v":6},{"$f":"Таблица3[[#This Row],[Столбец7]]+Таблица3[[#This Row],[Столбец9]]","v":36},3,"Посмотреть расположение"]
[null,2,"Закрепление в блоке \"Рекомендуем\" ТЕАТР","3 дня","Закрепление мероприятия в категории Театр  (на 3 дня)",{"$f":"K4*0.03","v":1335},35,{"$f":"Таблица3[[#This Row],[Столбец7]]*20%","v":7},{"$f":"Таблица3[[#This Row],[Столбец7]]+Таблица3[[#This Row],[Столбец9]]","v":42},5.8,"Посмотреть расположение"]
[null,3,"Закрепление в блоке \"Рекомендуем\" МУЗЫКА","3 дня","Закрепление мероприятия в категории Музыка (на 3 дня)",{"$f":"K4*0.025","v":1113},30,{"$f":"Таблица3[[#This Row],[Столбец7]]*20%","v":6},{"$f":"Таблица3[[#This Row],[Столбец7]]+Таблица3[[#This Row],[Столбец9]]","v":36},5.8,"Посмотреть расположение"]
[null,4,"Баннер \"Header\" ГЛАВНАЯ","1 день","Размещение баннера 1317x319 на Главной странцие",{"$f":"K4*0.22","v":9790},40,{"$f":"Таблица3[[#This Row],[Столбец7]]*20%","v":8},{"$f":"Таблица3[[#This Row],[Столбец7]]+Таблица3[[#This Row],[Столбец9]]","v":48},2.7,"Посмотреть расположение"]
[null,5,"Баннер \"Header\" ТЕАТР","3 дня","Размещение баннера 1317x319 в категории Театр  (на 3 дня)",{"$f":"K4*0.04","v":1780},60,{"$f":"Таблица3[[#This Row],[Столбец7]]*20%","v":12},{"$f":"Таблица3[[#This Row],[Столбец7]]+Таблица3[[#This Row],[Столбец9]]","v":72},7.5,"Посмотреть расположение"]
[null,6,"Баннер \"Header\" МУЗЫКА","3 дня","Размещение баннера 1317x319 в категории Музыка  (на 3 дня)",{"$f":"K4*0.027","v":1202},40,{"$f":"Таблица3[[#This Row],[Столбец7]]*20%","v":8},{"$f":"Таблица3[[#This Row],[Столбец7]]+Таблица3[[#This Row],[Столбец9]]","v":48},7.5,"Посмотреть расположение"]
[null,7,"Баннер-полоска в категории ВСЕ","3 дня","Баннер 1066x107 в категории Все  (на 3 дня)",{"$f":"K4*0.02","v":890},20,{"$f":"Таблица3[[#This Row],[Столбец7]]*20%","v":4},{"$f":"Таблица3[[#This Row],[Столбец7]]+Таблица3[[#This Row],[Столбец9]]","v":24},4.5,"Посмотреть расположение"]
[null,8,"Баннер-полоска в категории ТЕАТР","3 дня","Баннер 1066x107 в категории Театр  (на 3 дня)",{"$f":"K4*0.019","v":846},20,{"$f":"Таблица3[[#This Row],[Столбец7]]*20%","v":4},{"$f":"Таблица3[[#This Row],[Столбец7]]+Таблица3[[#This Row],[Столбец9]]","v":24},4.5,"Посмотреть расположение"]
[null,9,"Баннер-полоска в категории МУЗЫКА","3 дня","Баннер 1066x107 в категории Музыка  (на 3 дня)",{"$f":"K4*0.015","v":668},15,{"$f":"Таблица3[[#This Row],[Столбец7]]*20%","v":3},{"$f":"Таблица3[[#This Row],[Столбец7]]+Таблица3[[#This Row],[Столбец9]]","v":18},4.8,"Посмотреть расположение"]
[null,10,"Баннер-полоска в категории КЛУБ","3 дня","Баннер 1066x107 в категории Клуб  (на 3 дня)",{"$f":"K4*0.012","v":534},15,{"$f":"Таблица3[[#This Row],[Столбец7]]*20%","v":3},{"$f":"Таблица3[[#This Row],[Столбец7]]+Таблица3[[#This Row],[Столбец9]]","v":18},4.8,"Посмотреть расположение"]
[null,11,"Всплывающее окно при открытии сайта","1 день","Баннер 500x500 при открытии любой страницы сайта",{"$f":"K4*0.7","v":31150},80,{"$f":"Таблица3[[#This Row],[Столбец7]]*20%","v":16},{"$f":"Таблица3[[#This Row],[Столбец7]]+Таблица3[[#This Row],[Столбец9]]","v":96},1.7,"Посмотреть расположение"]
[null,12,"Бегущая строка на всех страницах сайта","1 день","Бегущая строка 800x35 на всех страницах сайта",{"$f":"K4*1","v":44500},90,{"$f":"Таблица3[[#This Row],[Столбец7]]*20%","v":18},{"$f":"Таблица3[[#This Row],[Столбец7]]+Таблица3[[#This Row],[Столбец9]]","v":108},1.3,"Посмотреть расположение"]
[null,13,"Размещение материала в рубрике новостей","1 шт.","Материал в новостях с закреплением на главной",{"$f":"K4*0.08","v":3560},30,{"$f":"Таблица3[[#This Row],[Столбец7]]*20%","v":6},{"$f":"Таблица3[[#This Row],[Столбец7]]+Таблица3[[#This Row],[Столбец9]]","v":36},5,"Посмотреть расположение"]
[null,"Сайт TEATR BY"]
[null,14,"Баннер \"Header\" ГЛАВНАЯ","1 день","Размещение баннера 1317x319 на Главной странцие",{"$f":"K4*0.22","v":9790},40,{"$f":"G25*20%","v":8},{"$f":"G25+H25","v":48},3,"Посмотреть расположение"]
[null,15,"Закрепление в блоке \"Рекомендуем\" ГЛАВНАЯ","1 день","Закрепление мероприятия на Главной странице",{"$f":"K4*0.15","v":6675},60,{"$f":"G26*20%","v":12},{"$f":"G26+H26","v":72},5.8,"Посмотреть расположение"]
[null,16,"Блок театра на ГЛАВНОЙ","1 день","Закрепление 5 мероприятий на Главной станице",{"$f":"K4*0.025","v":1113},{"$f":"F27/1000*J27*K2","v":10},2,12,5.8,"Посмотреть расположение"]
[null,17,"Всплывающее окно при открытии сайта","1 день","Баннер 500x500 при открытии любой страницы сайта",{"$f":"K4*0.7","v":31150},80,16,96,1.7,"Посмотреть расположение"]
[null,18,"Бегущая строка на всех страницах сайта","1 день","Бегущая строка 800x35 на всех страницах сайта",{"$f":"K4*1","v":44500},90,18,108,1.3,"Посмотреть расположение"]
[null,"Социальные сети vk.com/kvitkiby, facebook.com/kvitki.by, ok.ru/kvitkiby, twitter.com/kvitkiby"]
[null,19,"Пост на vk.com, facebook.com, ok.ru, twitter.com","1 шт.","Пост во всех соц.сообществах kvitki.by",17000,30,{"$f":"Таблица4[[#This Row],[Столбец7]]*20%","v":6},{"$f":"Таблица4[[#This Row],[Столбец7]]+Таблица4[[#This Row],[Столбец9]]","v":36},1.2,"Сообщество vk.com"]
[null,20,"Пост в соц.сетях с закреплением","1 день","Пост в сообществах с закреплением вверху",25000,40,{"$f":"Таблица4[[#This Row],[Столбец7]]*20%","v":8},{"$f":"Таблица4[[#This Row],[Столбец7]]+Таблица4[[#This Row],[Столбец9]]","v":48},1.1000000000000001,"Сообщество facebook.com"]
[null,21,"Проведение розыгрыша на vk.com","1 неделя","Запуск, поддержка и проведение розыгрыша",35000,50,{"$f":"Таблица4[[#This Row],[Столбец7]]*20%","v":10},{"$f":"Таблица4[[#This Row],[Столбец7]]+Таблица4[[#This Row],[Столбец9]]","v":60},1,"Сообщество instagram.com"]
[null,22,"Пакет из 5 постов в соц.сетях + розыгрыш на vk.com","1 шт.","Пакет постов + проведение розыгрыша",{"$f":"F31*5+F33","v":120000},120,{"$f":"Таблица4[[#This Row],[Столбец7]]*20%","v":24},{"$f":"Таблица4[[#This Row],[Столбец7]]+Таблица4[[#This Row],[Столбец9]]","v":144},0.7,"Сообщество twitter.com"]
[null,"Е-mail рассылка"]
[null,23,"E-mail рассылка на 310 000 адресов","1 шт.","Эксклюзивная рассылка на всю базу подписчиков",{"$f":"K6","v":300000},520,{"$f":"Таблица5[[#This Row],[Столбец7]]*20%","v":104},{"$f":"Таблица5[[#This Row],[Столбец7]]+Таблица5[[#This Row],[Столбец5]]","v":624},2,"Посмотреть пример"]
[null,24,"E-mail рассылка на 310 000 адресов в подборке","1 шт.","Рассылка в подборке из мероприятий на всю базу подписчиков",{"$f":"K6","v":300000},160,{"$f":"Таблица5[[#This Row],[Столбец7]]*20%","v":32},{"$f":"Таблица5[[#This Row],[Столбец7]]+Таблица5[[#This Row],[Столбец5]]","v":192},0.6,"Посмотреть пример"]
[null,"Оффлайн реклама"]
[null,25,"Размещение афиши А0 в переходе ГУМ-Макдональдс","1 неделя","Афиша А0 на стендах фирменной кассы",200000,{"$f":"F39/1000*J39*K2","v":120},{"$f":"Таблица6[[#This Row],[Столбец7]]*20%","v":24},{"$f":"Таблица6[[#This Row],[Столбец7]]+Таблица6[[#This Row],[Столбец5]]","v":144},0.4]
[null,26,"Размещение афиши А3 в переходе ГУМ-Макдональдс","1 неделя","Афиша А3 на стендах фирменной кассы",150000,70,{"$f":"Таблица6[[#This Row],[Столбец7]]*20%","v":14},{"$f":"Таблица6[[#This Row],[Столбец7]]+Таблица6[[#This Row],[Столбец5]]","v":84},0.3]
[null,27,"Размещение афиши А4 в переходе ГУМ-Макдональдс","1 неделя","Афиша А4 на стендах фирменной кассы",120000,60,{"$f":"Таблица6[[#This Row],[Столбец7]]*20%","v":12},{"$f":"Таблица6[[#This Row],[Столбец7]]+Таблица6[[#This Row],[Столбец5]]","v":72},0.3]
[null,28,"Размещение 140 афиш А3 в сети салонов \"Евросеть\" РБ","1 неделя","Афиши А3 в салонах по всей РБ по согласованию с \"Евросеть\"",90000,110,{"$f":"Таблица6[[#This Row],[Столбец7]]*20%","v":22},{"$f":"Таблица6[[#This Row],[Столбец7]]+Таблица6[[#This Row],[Столбец5]]","v":132},0.8]
[null,29,"Блок заголовка на фирменном термобилете, 1000 шт.","1 шт.","Текст, ч/б изображение, 850x250",1000,30,{"$f":"Таблица6[[#This Row],[Столбец7]]*20%","v":6},{"$f":"Таблица6[[#This Row],[Столбец7]]+Таблица6[[#This Row],[Столбец5]]","v":36},18]
[null,30,"Рекламный блок на фирменном термобилете, 1000 шт.","1 шт.","Текст, ч/б изображение, 200x200",1000,20,{"$f":"Таблица6[[#This Row],[Столбец7]]*20%","v":4},{"$f":"Таблица6[[#This Row],[Столбец7]]+Таблица6[[#This Row],[Столбец5]]","v":24},13]
[null,31,"Рекламный блок на е-квитке А4","1 неделя","Текст, изображение, 900x600",1000,50,{"$f":"Таблица6[[#This Row],[Столбец7]]*20%","v":10},{"$f":"Таблица6[[#This Row],[Столбец7]]+Таблица6[[#This Row],[Столбец5]]","v":60},35]
[null,"Реклама в интернете"]
[null,32,"Создание и ведение рекламной кампании в интернете","1 месяц","Запуск, ведение, статистика рекламы в интернете (бюджет от $150)","500 000 +",120,{"$f":"G47*20%","v":24},{"$f":"G47+H47","v":144}]
[null,33,"Использование списков ретаргетинга сайта для рекламы","1 месяц","Преследование посетителей нашего сайта ","500 000 +",120,{"$f":"G48*20%","v":24},{"$f":"G48+H48","v":144}]
[null,34,"Сопровождение рекламной кампании","1 месяц","Сопровождение документооборота рекламы в интернете",10000,25,{"$f":"G49*20%","v":5},30]
[null,"Тарифные планы на размещение мероприятий см. далее"]
[null,35,"Тарифный план FREE","1 шт.","Комплексный набор рекламных услуг",null,0,{"$f":"G51*20%","v":0},{"$f":"G51+H51","v":0}]
[null,36,"Тарифный план START на 1 неделю","1 шт.","Комплексный набор рекламных услуг",null,70,{"$f":"G52*20%","v":14},{"$f":"G52+H52","v":84}]
[null,37,"Тарифный план STANDART на 1 неделю","1 шт.","Комплексный набор рекламных услуг",null,120,{"$f":"G53*20%","v":24},{"$f":"G53+H53","v":144}]
[null,38,"Тарифный план VIP на 1 неделю","1 шт.","Комплексный набор рекламных услуг",null,170,34,204]
[null,39,"Тарифный план START на 2 недели","1 шт.","Комплексный набор рекламных услуг",null,140,28,168]
[null,40,"Тарифный план STANDART на 2 недели","1 шт.","Комплексный набор рекламных услуг",null,240,48,288]
[null,41,"Тарифный план VIP на 2 недели","1 шт.","Комплексный набор рекламных услуг",null,340,68,408]
[null,"Основные услуги компании"]
[null,42,"Размер вознаграждения комиссионера от стоимости каждого реализованного билета",null,null,null,null,null,0.12]
[null,43,"Первичная обработка информации о мероприятии, ввод реквизитов организатора в базу данных *",null,null,null,"25 евро","5 евро","30 евро"]
[null,44,"Обработка информации для системы о мероприятии (ввод мероприятий) *",null,null,null,"16,5 евро","3,3 евро","20 евро"]
[null,45,"Услуга формирование электронных пригласительных билетов в рамках одного мероприятия *",null,null,null,"8,33 евро","1,67 евро","10 евро"]
[null,46,"Стоимость печати одного термо-бланка",null,null,null,0.42,{"$f":"Таблица1[[#This Row],[Столбец6]]*20%","v":0.08},{"$f":"Таблица1[[#This Row],[Столбец6]]+Таблица1[[#This Row],[Столбец7]]","v":0.5}]
[null,"Услуги контроля"]
[null,47,"Осуществление сканирования билетов (1 сотрудник+1 ед оборудования)","1 час",null,null,12.5,{"$f":"G65*20%","v":2.5},{"$f":"G65+H65","v":15}]
[null,48,"Аренда 1 ед оборудования для сканирования билетов","1 час",null,null,7,{"$f":"G66*20%","v":1.4},{"$f":"G66+H66","v":8.4}]
[null,49,"Обслуживание мобильной кассы +терминал (1 сотрудник +1 комплект оборудования)**","1 час",null,null,33.33,6.67,40]
[]
[null,"* - Оплата производится в белорусских рублях по курсу Национального банка Республики Беларусь на дату формирования акта выполненных работ."]
[null,"** - Продажа билетов отражается в системе, стоимость билета соответствует стоимости на сайте KVITKI BY, мин время аренды - 3 часа"]

{"sheet":"Тарифные планы","index":1,"n_rows":23,"n_cols":12,"rows_kept":23,"cut":false,"hidden":false,"merged":[[0,1,0,11],[2,10,2,11],[4,10,4,11],[4,1,4,2],[4,4,4,5],[2,4,2,5],[2,1,2,2],[4,7,4,8],[2,7,2,8],[3,1,3,2],[3,4,3,5],[3,7,3,8],[3,10,3,11]]}
[null,"Тарифные планы на комплексную рекламную поддержку"]
[]
[null,"FREE",null,null,"START",null,null,"STANDART",null,null,"VIP"]
[null,null,null,null,"2 недели",null,null,"2 недели",null,null,"2 недели"]
[null,"0 руб.",null,null,"168 руб.*",null,null,"288 руб.*",null,null,"408 руб.*"]
[null,"Анонс в соц.сетях при запуске мероприятия***","1 шт.",null,"Позиции тарифа FREE","все",null,"Позиции тарифа FREE","все",null,"Позиции тарифа FREE","все"]
[null,"Установка ссылки на afisha.tut.by","1 шт.",null,"Закрепление \"Рекомендуем\" в категории","4 дня",null,"Закрепление \"Рекомендуем\" на Главной","4 дня",null,"Закрепление \"Рекомендуем\" на Главной","8 дней"]
[null,"Установка баннера на билеты","1 шт.",null,"Баннер \"Header\" в категории","4 дня",null,"Закрепление \"Рекомендуем\" в категории","4 дня",null,"Закрепление \"Рекомендуем\" в категории","6 дней"]
[null,"Интеграция продажи на сайт организатора","1 шт.",null,"Баннер-полоска в категории","4 дня",null,"Баннер \"Header\" на Главной","2 дня",null,"Баннер \"Header\" на Главной","4 дня."]
[null,"Генерация промо-кодов для скидок","1 шт.",null,"Пост-напоминание в соц. сетях","1 день",null,"Баннер \"Header\" в категории \"ВСЕ\"","2 дня",null,"Баннер \"Header\" в категории \"ВСЕ\"","4 дня"]
[null,"Приложение контроля билетов**","1 шт.",null,"Розыгрыш в соц. сетях","1 шт.",null,"Баннер \"Header\" в категории","4 дня",null,"Баннер \"Header\" в категории","6 дней"]
[null,"Интеграция приложения в группу VK.COM","1 шт.",null,null,null,null,"Баннер-полоска в категории \"ВСЕ\"","2 дня",null,"Баннер-полоска в категории \"ВСЕ\"","4 дня"]
[null,null,null,null,null,null,null,"Баннер-полоска в категории","4 дня",null,"Баннер-полоска в категории","6 дней"]
[null,null,null,null,null,null,null,"Размещение новости на Главной","1 день",null,"Размещение новости на Главной","1 день"]
[null,null,null,null,null,null,null,"Пост-напоминание в соц. сетях","1 шт.",null,"Пост-напоминание в соц. сетях","2 шт."]
[null,null,null,null,null,null,null,"Розыгрыш в соц. сетях","1 шт.",null,"Розыгрыш в соц. сетях","1 шт."]
[null,null,null,null,null,null,null,"Бегущая строка на всех страницах сайта","1 день",null,"Бегущая строка на всех страницах сайта","2 дня"]
[null,null,null,null,null,null,null,null,null,null,"Всплывающее окно при открытии сайта","2 дня"]
[null,"СКИДКА НА ДРУГИЕ ПОЗИЦИИ ПРАЙСА",0,null,"СКИДКА НА ДРУГИЕ ПОЗИЦИИ ПРАЙСА",0.1,null,"СКИДКА НА ДРУГИЕ ПОЗИЦИИ ПРАЙСА",0.2,null,"СКИДКА НА ДРУГИЕ ПОЗИЦИИ ПРАЙСА",0.3]
[]
[null,"* - цена в бел.руб. без учета НДС"]
[null,"** - информация о приложении на сайте: http://www.kvitki.by/rus/obshaja-informacija/organizatoram/prilozhenie-kontrolia/"]
[null,"*** - при наличии свободных мест"]

{"sheet":"Примеры Баннеров","index":2,"n_rows":87,"n_cols":13,"rows_kept":87,"cut":false,"hidden":false,"merged":[[0,0,0,10],[0,12,0,22],[86,0,86,10]]}
["Расположение позиций на Главной",null,null,null,null,null,null,null,null,null,null,null,"Расположение позиций в Категориях"]
[]
[]
[]
[]
[]
[]
[]
[]
[]
[]
[]
[]
[]
[]
[]
[]
[]
[]
[]
[]
[]
[]
[]
[]
[]
[]
[]
[]
[]
[]
[]
[]
[]
[]
[]
[]
[]
[]
[]
[]
[]
[]
[]
[]
[]
[]
[]
[]
[]
[]
[]
[]
[]
[]
[]
[]
[]
[]
[]
[]
[]
[]
[]
[]
[]
[]
[]
[]
[]
[]
[]
[]
[]
[]
[]
[]
[]
[]
[]
[]
[]
[]
[]
[]
[]
["Бегущая строка"]

{"sheet":"Примеры Рассылок","index":3,"n_rows":1,"n_cols":17,"rows_kept":1,"cut":false,"hidden":false,"merged":[[0,0,0,6],[0,8,0,14],[0,16,0,22]]}
["Эксклюзивная рассылка",null,null,null,null,null,null,null,"Рассылка из 3 позиций ",null,null,null,null,null,null,null,"Рассылка из 7 позиций "]

{"sheet":"Контакты","index":4,"n_rows":2,"n_cols":17,"rows_kept":2,"cut":false,"hidden":false,"merged":[[0,0,0,6],[1,0,1,6],[0,8,0,14],[1,8,1,14],[0,16,0,22],[1,16,1,22]]}
["Реквизиты компании",null,null,null,null,null,null,null,"Отдел маркетинга",null,null,null,null,null,null,null,"Для организаторов мероприятий"]
["ООО \"Квитки Бел\"\n220030, г. Минск, ул. Зыбицкая, д.9 пом. 39\nтел/факс: + 375 17 293 03 74\nУНП: 191295928\nОКПО: 379037315000\nр/с BY88 UNBS 3012 0466 4000 9000 0933 в ЗАО «БСБ Банк», код UNBSBY2X, адрес банка: пр-т Победителей, 23, корп.3, г. Минск, РБ,\nСвидетельство о регистрации №191295928 выдано 29.01.2010 Минским горисполкомом",null,null,null,null,null,null,null,"E-mail: marketing@kvitki.by, Тел. +375(17) 293-03-74,\nРежим работы: Пн- Пт. с 9.00 до 18.00, Сб, Вс - выходные.\n\nКристина Малаховская: +375(29) 199-07-01,\nИлья Люлькович: +375(29) 199-46-52",null,null,null,null,null,null,null,"Для организаторов в Минске:\nМарина, marina.adamovich@kvitki.by, +375(29) 130-09-55,\nРежим работы: Пн- Пт. с 9.00 до 18.00, Сб, Вс - выходные.\n\nДля организаторов из областных центров:\nВера, vera.brishten@kvitki.by, +375(29) 199-12-76,\nРежим работы: Пн- Пт. с 9.00 до 18.00, Сб, Вс - выходные."]